[Event "Titled Tuesday Blitz December 06 Early 2022"]
[White "Topalov, Aleksandar"]
[Black "Kleiman, Jake"]
[WhiteFideId "925659"]
[BlackFideId "2020041"]
[WhiteElo "2151"]
[BlackElo "2560"]
[Result "0-1"]
[Round "09"]
[TimeControl "180+1"]
[Date "2022.12.07"]
[WhiteClock "0:00:03"]
[BlackClock "0:00:06"]

1. b3 {[%clk 0:03:00]}  d5 {[%clk 0:02:59]} 2. Bb2 {[%clk 0:03:00]}  Bg4 {[%clk 0:02:59]} 3. g3 {[%clk 0:02:58]}  e6 {[%clk 0:02:59]} 4. Bg2 {[%clk 0:02:58]}  Nf6 {[%clk 0:03:00]} 5. Nf3 {[%clk 0:02:58]}  Be7 {[%clk 0:03:00]} 6. O-O {[%clk 0:02:59]}  O-O {[%clk 0:03:01]} 7. d3 {[%clk 0:02:59]}  c5 {[%clk 0:03:01]} 8. Ne5 {[%clk 0:02:58]}  Bf5 {[%clk 0:03:01]} 9. Nd2 {[%clk 0:02:58]}  Qc7 {[%clk 0:02:59]} 10. e4 {[%clk 0:02:57]}  Bg6 {[%clk 0:02:56]} 11. Qe2 {[%clk 0:02:56]}  Nc6 {[%clk 0:02:51]} 12. Nxc6 {[%clk 0:02:55]}  bxc6 {[%clk 0:02:47]} 13. h3 {[%clk 0:02:49]}  Rfe8 {[%clk 0:02:32]} 14. Kh1 {[%clk 0:02:47]}  h6 {[%clk 0:02:05]} 15. e5 {[%clk 0:02:45]}  Nd7 {[%clk 0:02:03]} 16. f4 {[%clk 0:02:44]}  f5 {[%clk 0:01:57]} 17. exf6 {[%clk 0:02:43]}  Bxf6 {[%clk 0:01:57]} 18. Bxf6 {[%clk 0:02:42]}  Nxf6 {[%clk 0:01:57]} 19. Nf3 {[%clk 0:02:40]}  Nd7 {[%clk 0:01:50]} 20. Rae1 {[%clk 0:02:37]}  Re7 {[%clk 0:01:48]} 21. Ne5 {[%clk 0:02:21]}  Nxe5 {[%clk 0:01:46]} 22. Qxe5 {[%clk 0:02:21]}  Qxe5 {[%clk 0:01:46]} 23. Rxe5 {[%clk 0:02:21]}  a5 {[%clk 0:01:28]} 24. Rfe1 {[%clk 0:02:21]}  Kf7 {[%clk 0:01:24]} 25. g4 {[%clk 0:02:18]}  Rae8 {[%clk 0:01:22]} 26. Kh2 {[%clk 0:02:12]}  Kf6 {[%clk 0:01:22]} 27. Kg3 {[%clk 0:02:09]}  Bf7 {[%clk 0:01:16]} 28. h4 {[%clk 0:02:08]}  g6 {[%clk 0:01:03]} 29. c4 {[%clk 0:01:53]}  a4 {[%clk 0:01:02]} 30. g5+ {[%clk 0:01:49]}  Kg7 {[%clk 0:01:01]} 31. cxd5 {[%clk 0:01:48]}  cxd5 {[%clk 0:01:01]} 32. Bxd5 {[%clk 0:01:48]}  Rd8 {[%clk 0:00:54]} 33. Bc4 {[%clk 0:01:48]}  Rd4 {[%clk 0:00:51]} 34. f5 {[%clk 0:01:33]}  gxf5 {[%clk 0:00:50]} 35. Rxf5 {[%clk 0:01:33]}  axb3 {[%clk 0:00:39]} 36. axb3 {[%clk 0:01:33]}  h5 {[%clk 0:00:33]} 37. Rfe5 {[%clk 0:01:24]}  Rg4+ {[%clk 0:00:32]} 38. Kh3 {[%clk 0:01:24]}  Rd4 {[%clk 0:00:31]} 39. Rxc5 {[%clk 0:01:11]}  Bg6 {[%clk 0:00:23]} 40. Rce5 {[%clk 0:00:42]}  Kf7 {[%clk 0:00:17]} 41. Rf1+ {[%clk 0:00:32]}  Kg7 {[%clk 0:00:16]} 42. Rf3 {[%clk 0:00:30]}  Re8 {[%clk 0:00:11]} 43. Kg3 {[%clk 0:00:30]}  Rg4+ {[%clk 0:00:10]} 44. Kh3 {[%clk 0:00:30]}  Rd4 {[%clk 0:00:10]} 45. b4 {[%clk 0:00:26]}  Rf8 {[%clk 0:00:07]} 46. Rxf8 {[%clk 0:00:24]}  Kxf8 {[%clk 0:00:08]} 47. Re3 {[%clk 0:00:19]}  Bf5+ {[%clk 0:00:07]} 48. Kg3 {[%clk 0:00:18]}  Rg4+ {[%clk 0:00:08]} 49. Kf2 {[%clk 0:00:18]}  Rxh4 {[%clk 0:00:08]} 50. b5 {[%clk 0:00:18]}  Rh2+ {[%clk 0:00:08]} 51. Kf3 {[%clk 0:00:17]}  Rb2 {[%clk 0:00:09]} 52. Kf4 {[%clk 0:00:17]}  h4 {[%clk 0:00:09]} 53. Ke5 {[%clk 0:00:16]}  h3 {[%clk 0:00:08]} 54. Re1 {[%clk 0:00:16]}  h2 {[%clk 0:00:08]} 55. Kf6 {[%clk 0:00:14]}  Bg4 {[%clk 0:00:07]} 56. Rf1 {[%clk 0:00:13]}  Bf3 {[%clk 0:00:07]} 57. Kxe6 {[%clk 0:00:09]}  h1=Q {[%clk 0:00:07]} 58. Rxh1 {[%clk 0:00:09]}  Bxh1 {[%clk 0:00:07]} 59. Kd6 {[%clk 0:00:09]}  Kg7 {[%clk 0:00:06]} 60. Kc7 {[%clk 0:00:08]}  Kg6 {[%clk 0:00:06]} 61. d4 {[%clk 0:00:08]}  Kxg5 {[%clk 0:00:06]} 62. b6 {[%clk 0:00:04]}  Rc2 {[%clk 0:00:06]} 63. b7 {[%clk 0:00:03]}  Rxc4+ {[%clk 0:00:06]} 64. Kd6 {[%clk 0:00:03]}  Rxd4+ {[%clk 0:00:06]} 0-1


[Site "https://www.chess.com"]

[Event "Titled Tuesday Blitz December 06 Early 2022"]
[White "Tsatsalashvili, Keti"]
[Black "Kuchava, Ana"]
[WhiteFideId "13603434"]
[BlackFideId "13605348"]
[WhiteElo "2220"]
[BlackElo "2001"]
[Result "1/2-1/2"]
[Round "09"]
[TimeControl "180+1"]
[Date "2022.12.07"]
[WhiteClock "0:00:15"]
[BlackClock "0:00:07"]

1. d4 {[%clk 0:03:00]}  d5 {[%clk 0:02:57]} 2. Nf3 {[%clk 0:03:00]}  Nf6 {[%clk 0:02:51]} 3. c4 {[%clk 0:02:55]}  e6 {[%clk 0:02:48]} 4. Nc3 {[%clk 0:02:52]}  Be7 {[%clk 0:02:47]} 5. Bg5 {[%clk 0:02:51]}  O-O {[%clk 0:02:46]} 6. e3 {[%clk 0:02:50]}  h6 {[%clk 0:02:44]} 7. Bh4 {[%clk 0:02:49]}  b6 {[%clk 0:02:43]} 8. cxd5 {[%clk 0:02:46]}  Nxd5 {[%clk 0:02:41]} 9. Bg3 {[%clk 0:02:44]}  Bb7 {[%clk 0:02:35]} 10. Bd3 {[%clk 0:02:40]}  Nd7 {[%clk 0:02:29]} 11. O-O {[%clk 0:02:29]}  Nxc3 {[%clk 0:02:25]} 12. bxc3 {[%clk 0:02:29]}  c5 {[%clk 0:02:26]} 13. Ne5 {[%clk 0:02:25]}  Nf6 {[%clk 0:02:10]} 14. Rc1 {[%clk 0:02:22]}  cxd4 {[%clk 0:01:50]} 15. cxd4 {[%clk 0:02:16]}  Rc8 {[%clk 0:01:48]} 16. Qe2 {[%clk 0:02:13]}  Ba3 {[%clk 0:01:34]} 17. Rxc8 {[%clk 0:02:07]}  Qxc8 {[%clk 0:01:35]} 18. Bh4 {[%clk 0:01:51]}  Nd5 {[%clk 0:01:31]} 19. Nc4 {[%clk 0:01:46]}  Bb4 {[%clk 0:01:22]} 20. a3 {[%clk 0:01:39]}  Be7 {[%clk 0:01:18]} 21. Bxe7 {[%clk 0:01:39]}  Nxe7 {[%clk 0:01:19]} 22. Nd6 {[%clk 0:01:38]}  Qd7 {[%clk 0:01:15]} 23. Nxb7 {[%clk 0:01:38]}  Qxb7 {[%clk 0:01:16]} 24. Ba6 {[%clk 0:01:33]}  Qc7 {[%clk 0:01:15]} 25. Qb2 {[%clk 0:01:28]}  Nd5 {[%clk 0:01:02]} 26. Rc1 {[%clk 0:01:27]}  Qd6 {[%clk 0:01:02]} 27. h3 {[%clk 0:01:25]}  Rd8 {[%clk 0:00:55]} 28. Bd3 {[%clk 0:00:57]}  Qd7 {[%clk 0:00:48]} 29. Qc2 {[%clk 0:00:48]}  Qd6 {[%clk 0:00:48]} 30. Qb3 {[%clk 0:00:45]}  Qd7 {[%clk 0:00:46]} 31. Qb5 {[%clk 0:00:41]}  Qe7 {[%clk 0:00:36]} 32. Qb2 {[%clk 0:00:28]}  Qd7 {[%clk 0:00:34]} 33. Bb5 {[%clk 0:00:28]}  Qd6 {[%clk 0:00:32]} 34. Ba4 {[%clk 0:00:27]}  a6 {[%clk 0:00:28]} 35. Rc6 {[%clk 0:00:26]}  Qb8 {[%clk 0:00:26]} 36. Qc1 {[%clk 0:00:25]}  b5 {[%clk 0:00:25]} 37. Bc2 {[%clk 0:00:25]}  Qb7 {[%clk 0:00:24]} 38. Bb1 {[%clk 0:00:24]}  g6 {[%clk 0:00:23]} 39. Be4 {[%clk 0:00:22]}  Rd7 {[%clk 0:00:20]} 40. Qc2 {[%clk 0:00:22]}  Kg7 {[%clk 0:00:20]} 41. h4 {[%clk 0:00:22]}  a5 {[%clk 0:00:16]} 42. Rc5 {[%clk 0:00:21]}  b4 {[%clk 0:00:15]} 43. axb4 {[%clk 0:00:21]}  axb4 {[%clk 0:00:16]} 44. Qb2 {[%clk 0:00:21]}  Rc7 {[%clk 0:00:13]} 45. Bxd5 {[%clk 0:00:20]}  exd5 {[%clk 0:00:13]} 46. g3 {[%clk 0:00:17]}  Rxc5 {[%clk 0:00:10]} 47. dxc5+ {[%clk 0:00:18]}  Kh7 {[%clk 0:00:09]} 48. c6 {[%clk 0:00:17]}  Qxc6 {[%clk 0:00:08]} 49. Qxb4 {[%clk 0:00:17]}  Qc1+ {[%clk 0:00:09]} 50. Kg2 {[%clk 0:00:17]}  Qc6 {[%clk 0:00:09]} 51. Qd4 {[%clk 0:00:17]}  Kg8 {[%clk 0:00:08]} 52. Kh2 {[%clk 0:00:16]}  Qe6 {[%clk 0:00:08]} 53. Kg2 {[%clk 0:00:16]}  Qc6 {[%clk 0:00:07]} 54. Kh2 {[%clk 0:00:15]} 1/2-1/2


[Site "https://www.chess.com"]

[Event "Titled Tuesday Blitz December 06 Early 2022"]
[White "Volkov, Maksim"]
[Black "Acor, Corey"]
[WhiteFideId "54123070"]
[BlackFideId "2024861"]
[WhiteElo "2257"]
[BlackElo "2341"]
[Result "0-1"]
[Round "09"]
[TimeControl "180+1"]
[Date "2022.12.06"]
[WhiteClock "0:00:02"]
[BlackClock "0:00:04"]

1. d4 {[%clk 0:03:00]}  Nf6 {[%clk 0:02:58]} 2. c4 {[%clk 0:03:00]}  e5 {[%clk 0:02:58]} 3. dxe5 {[%clk 0:02:59]}  Ng4 {[%clk 0:02:59]} 4. e3 {[%clk 0:02:53]}  Nxe5 {[%clk 0:02:58]} 5. Nh3 {[%clk 0:02:53]}  Ng6 {[%clk 0:02:58]} 6. Nf4 {[%clk 0:02:51]}  Nc6 {[%clk 0:02:53]} 7. Nc3 {[%clk 0:02:47]}  Nxf4 {[%clk 0:02:46]} 8. exf4 {[%clk 0:02:47]}  Bc5 {[%clk 0:02:45]} 9. Qe2+ {[%clk 0:02:32]}  Be7 {[%clk 0:02:20]} 10. Be3 {[%clk 0:02:30]}  O-O {[%clk 0:02:19]} 11. g3 {[%clk 0:02:15]}  Re8 {[%clk 0:02:08]} 12. Bg2 {[%clk 0:02:15]}  b6 {[%clk 0:01:56]} 13. O-O {[%clk 0:02:11]}  Bb7 {[%clk 0:01:57]} 14. Qd2 {[%clk 0:02:09]}  Rb8 {[%clk 0:01:43]} 15. Nd5 {[%clk 0:02:04]}  Bf8 {[%clk 0:01:36]} 16. Rad1 {[%clk 0:02:00]}  a5 {[%clk 0:01:35]} 17. a3 {[%clk 0:01:58]}  d6 {[%clk 0:01:33]} 18. Rfe1 {[%clk 0:01:50]}  Ne7 {[%clk 0:01:32]} 19. Qc3 {[%clk 0:01:46]}  Nf5 {[%clk 0:01:27]} 20. Bc1 {[%clk 0:01:46]}  c5 {[%clk 0:01:19]} 21. b3 {[%clk 0:01:34]}  Bxd5 {[%clk 0:01:04]} 22. Bxd5 {[%clk 0:01:31]}  g6 {[%clk 0:01:01]} 23. Rxe8 {[%clk 0:01:17]}  Qxe8 {[%clk 0:01:02]} 24. Re1 {[%clk 0:01:17]}  Qd7 {[%clk 0:01:01]} 25. Be3 {[%clk 0:00:49]}  Bg7 {[%clk 0:00:55]} 26. Qd2 {[%clk 0:00:49]}  a4 {[%clk 0:00:49]} 27. b4 {[%clk 0:00:45]}  Re8 {[%clk 0:00:38]} 28. Kg2 {[%clk 0:00:28]}  Bd4 {[%clk 0:00:23]} 29. Kf3 {[%clk 0:00:18]}  Re7 {[%clk 0:00:20]} 30. b5 {[%clk 0:00:17]}  Qe8 {[%clk 0:00:18]} 31. Bc6 {[%clk 0:00:17]}  Qf8 {[%clk 0:00:16]} 32. Re2 {[%clk 0:00:11]}  Qh6 {[%clk 0:00:12]} 33. h4 {[%clk 0:00:08]}  Qh5+ {[%clk 0:00:10]} 34. Kg2 {[%clk 0:00:08]}  Bxe3 {[%clk 0:00:08]} 35. fxe3 {[%clk 0:00:08]}  Qg4 {[%clk 0:00:08]} 36. Qe1 {[%clk 0:00:08]}  Nxh4+ {[%clk 0:00:08]} 37. Kf2 {[%clk 0:00:06]}  Nf5 {[%clk 0:00:07]} 38. Qg1 {[%clk 0:00:06]}  Qh3 {[%clk 0:00:04]} 39. Bf3 {[%clk 0:00:03]}  Qh6 {[%clk 0:00:05]} 40. Rd2 {[%clk 0:00:02]}  Qg7 {[%clk 0:00:04]} 0-1


[Site "https://www.chess.com"]

[Event "Titled Tuesday Blitz December 06 Early 2022"]
[White "Weetik, Vjacheslav"]
[Black "Ismayil, Malak"]
[WhiteFideId "4153472"]
[BlackFideId "13412604"]
[WhiteElo "2469"]
[BlackElo "1880"]
[Result "1-0"]
[Round "09"]
[TimeControl "180+1"]
[Date "2022.12.07"]
[WhiteClock "0:00:14"]
[BlackClock "0:00:01"]

1. d4 {[%clk 0:02:59]}  Nf6 {[%clk 0:02:59]} 2. Nf3 {[%clk 0:02:59]}  g6 {[%clk 0:03:00]} 3. Bg5 {[%clk 0:02:59]}  Bg7 {[%clk 0:03:01]} 4. c3 {[%clk 0:02:59]}  O-O {[%clk 0:03:01]} 5. Nbd2 {[%clk 0:02:57]}  d6 {[%clk 0:03:02]} 6. e4 {[%clk 0:02:56]}  Nc6 {[%clk 0:03:02]} 7. Be2 {[%clk 0:02:55]}  e5 {[%clk 0:03:02]} 8. dxe5 {[%clk 0:02:54]}  dxe5 {[%clk 0:03:02]} 9. O-O {[%clk 0:02:49]}  h6 {[%clk 0:03:00]} 10. Bh4 {[%clk 0:02:49]}  g5 {[%clk 0:02:57]} 11. Bg3 {[%clk 0:02:49]}  Qe7 {[%clk 0:02:58]} 12. Qc2 {[%clk 0:02:45]}  Bg4 {[%clk 0:02:57]} 13. Rfe1 {[%clk 0:02:42]}  Rad8 {[%clk 0:02:56]} 14. b4 {[%clk 0:02:39]}  Nh5 {[%clk 0:02:42]} 15. Nc4 {[%clk 0:02:23]}  Nf4 {[%clk 0:02:35]} 16. Ne3 {[%clk 0:02:17]}  Bxf3 {[%clk 0:02:26]} 17. Bxf3 {[%clk 0:02:16]}  Nb8 {[%clk 0:02:23]} 18. Nf5 {[%clk 0:01:56]}  Qe6 {[%clk 0:02:20]} 19. Bg4 {[%clk 0:01:42]}  Qf6 {[%clk 0:02:19]} 20. h4 {[%clk 0:01:24]}  c5 {[%clk 0:01:53]} 21. b5 {[%clk 0:01:19]}  Nd7 {[%clk 0:01:52]} 22. hxg5 {[%clk 0:01:14]}  hxg5 {[%clk 0:01:52]} 23. Rad1 {[%clk 0:01:07]}  Nb6 {[%clk 0:01:51]} 24. c4 {[%clk 0:01:04]}  Rxd1 {[%clk 0:01:11]} 25. Rxd1 {[%clk 0:00:59]}  Rd8 {[%clk 0:01:11]} 26. a4 {[%clk 0:00:32]}  Rxd1+ {[%clk 0:00:18]} 27. Qxd1 {[%clk 0:00:32]}  Nxc4 {[%clk 0:00:16]} 28. Qd7 {[%clk 0:00:32]}  Na5 {[%clk 0:00:14]} 29. Qe8+ {[%clk 0:00:27]}  Kh7 {[%clk 0:00:13]} 30. Ne3 {[%clk 0:00:25]}  c4 {[%clk 0:00:10]} 31. Bf5+ {[%clk 0:00:25]}  Ng6 {[%clk 0:00:04]} 32. Ng4 {[%clk 0:00:23]}  Qd6 {[%clk 0:00:03]} 33. Qxf7 {[%clk 0:00:22]}  Qd1+ {[%clk 0:00:01]} 34. Kh2 {[%clk 0:00:22]}  Qd6 {[%clk 0:00:02]} 35. Nxe5 {[%clk 0:00:19]}  Kh6 {[%clk 0:00:01]} 36. Ng4+ {[%clk 0:00:14]}  Kh7 {[%clk 0:00:01]} 37. Bxd6 {[%clk 0:00:14]} 1-0


[Site "https://www.chess.com"]

[Event "Titled Tuesday Blitz December 06 Early 2022"]
[White "Xiong, Jeffery"]
[Black "Dardha, Daniel"]
[WhiteFideId "2047640"]
[BlackFideId "240990"]
[WhiteElo "2726"]
[BlackElo "2528"]
[Result "0-1"]
[Round "09"]
[TimeControl "180+1"]
[Date "2022.12.06"]
[WhiteClock "0:00:07"]
[BlackClock "0:00:06"]

1. e4 {[%clk 0:03:00]}  e5 {[%clk 0:02:58]} 2. Nf3 {[%clk 0:03:01]}  Nc6 {[%clk 0:02:58]} 3. Bb5 {[%clk 0:03:01]}  Nf6 {[%clk 0:02:58]} 4. d3 {[%clk 0:02:48]}  d6 {[%clk 0:02:57]} 5. O-O {[%clk 0:02:47]}  a6 {[%clk 0:02:57]} 6. Bxc6+ {[%clk 0:02:46]}  bxc6 {[%clk 0:02:58]} 7. Re1 {[%clk 0:02:46]}  a5 {[%clk 0:02:57]} 8. d4 {[%clk 0:02:45]}  Nd7 {[%clk 0:02:58]} 9. dxe5 {[%clk 0:02:28]}  dxe5 {[%clk 0:02:59]} 10. Bd2 {[%clk 0:02:28]}  Bd6 {[%clk 0:02:55]} 11. Na3 {[%clk 0:02:27]}  Bxa3 {[%clk 0:02:54]} 12. bxa3 {[%clk 0:02:28]}  O-O {[%clk 0:02:53]} 13. Re3 {[%clk 0:02:16]}  Qe7 {[%clk 0:02:50]} 14. Ne1 {[%clk 0:02:16]}  Nb6 {[%clk 0:02:47]} 15. Rc3 {[%clk 0:02:11]}  Na4 {[%clk 0:02:31]} 16. Rg3 {[%clk 0:01:49]}  f6 {[%clk 0:02:12]} 17. Nd3 {[%clk 0:01:49]}  Be6 {[%clk 0:02:06]} 18. Qe1 {[%clk 0:01:35]}  Nc5 {[%clk 0:01:50]} 19. Bxa5 {[%clk 0:01:30]}  Nxe4 {[%clk 0:01:47]} 20. Bb4 {[%clk 0:01:29]}  Nd6 {[%clk 0:01:47]} 21. Nc5 {[%clk 0:01:26]}  Bd5 {[%clk 0:01:41]} 22. a4 {[%clk 0:01:26]}  Qf7 {[%clk 0:01:40]} 23. a5 {[%clk 0:01:09]}  Rfe8 {[%clk 0:01:40]} 24. Rd3 {[%clk 0:00:49]}  f5 {[%clk 0:01:38]} 25. a3 {[%clk 0:00:34]}  f4 {[%clk 0:01:36]} 26. f3 {[%clk 0:00:19]}  Qg6 {[%clk 0:01:27]} 27. Qf2 {[%clk 0:00:18]}  e4 {[%clk 0:01:09]} 28. fxe4 {[%clk 0:00:19]}  Nxe4 {[%clk 0:01:10]} 29. Nxe4 {[%clk 0:00:20]}  Rxe4 {[%clk 0:01:10]} 30. Rd2 {[%clk 0:00:18]}  Qe6 {[%clk 0:00:43]} 31. Rf1 {[%clk 0:00:17]}  h6 {[%clk 0:00:43]} 32. Qc5 {[%clk 0:00:16]}  Bc4 {[%clk 0:00:31]} 33. Rd3 {[%clk 0:00:06]}  Bxd3 {[%clk 0:00:30]} 34. cxd3 {[%clk 0:00:07]}  Re5 {[%clk 0:00:23]} 35. Qc1 {[%clk 0:00:04]}  Qd5 {[%clk 0:00:14]} 36. Qxf4 {[%clk 0:00:04]}  Re2 {[%clk 0:00:14]} 37. Qg3 {[%clk 0:00:03]}  Qd4+ {[%clk 0:00:10]} 38. Kh1 {[%clk 0:00:04]}  Re3 {[%clk 0:00:10]} 39. Qxc7 {[%clk 0:00:03]}  Qxd3 {[%clk 0:00:10]} 40. Rg1 {[%clk 0:00:03]}  Qd5 {[%clk 0:00:08]} 41. Qb7 {[%clk 0:00:03]}  Ree8 {[%clk 0:00:07]} 42. a6 {[%clk 0:00:03]}  Qb5 {[%clk 0:00:07]} 43. Rc1 {[%clk 0:00:02]}  Rxa6 {[%clk 0:00:06]} 44. Qd7 {[%clk 0:00:02]}  Qe5 {[%clk 0:00:03]} 45. Bc3 {[%clk 0:00:02]}  Qe7 {[%clk 0:00:02]} 46. Qd3 {[%clk 0:00:02]}  Ra7 {[%clk 0:00:02]} 47. Bb4 {[%clk 0:00:02]}  Qf7 {[%clk 0:00:02]} 48. h3 {[%clk 0:00:03]}  Rd7 {[%clk 0:00:03]} 49. Qg3 {[%clk 0:00:02]}  Qd5 {[%clk 0:00:03]} 50. Rc3 {[%clk 0:00:01]}  Rf7 {[%clk 0:00:04]} 51. Kh2 {[%clk 0:00:02]}  Qe5 {[%clk 0:00:02]} 52. Rc5 {[%clk 0:00:03]}  Qxg3+ {[%clk 0:00:02]} 53. Kxg3 {[%clk 0:00:03]}  Re3+ {[%clk 0:00:02]} 54. Kh2 {[%clk 0:00:04]}  Rf6 {[%clk 0:00:03]} 55. a4 {[%clk 0:00:05]}  Re4 {[%clk 0:00:04]} 56. Bc3 {[%clk 0:00:05]}  Rg6 {[%clk 0:00:04]} 57. a5 {[%clk 0:00:05]}  Re2 {[%clk 0:00:04]} 58. a6 {[%clk 0:00:06]}  Rexg2+ {[%clk 0:00:05]} 59. Kh1 {[%clk 0:00:06]}  Rg1+ {[%clk 0:00:06]} 60. Kh2 {[%clk 0:00:07]}  R6g2# {[%clk 0:00:06]} 0-1


[Site "https://www.chess.com"]

[Event "Titled Tuesday Blitz December 06 Early 2022"]
[White "Yeletsky, Ivan"]
[Black "Agasarov, Benik"]
[WhiteFideId "24180327"]
[BlackFideId "13314823"]
[WhiteElo "2391"]
[BlackElo "2179"]
[Result "1-0"]
[Round "09"]
[TimeControl "180+1"]
[Date "2022.12.06"]
[WhiteClock "0:00:59"]
[BlackClock "0:00:32"]

1. Nf3 {[%clk 0:03:00]}  Nf6 {[%clk 0:02:57]} 2. g3 {[%clk 0:03:01]}  g6 {[%clk 0:02:48]} 3. b3 {[%clk 0:02:57]}  Bg7 {[%clk 0:02:48]} 4. Bb2 {[%clk 0:02:58]}  O-O {[%clk 0:02:46]} 5. Bg2 {[%clk 0:02:54]}  d6 {[%clk 0:02:47]} 6. d4 {[%clk 0:02:54]}  b5 {[%clk 0:02:46]} 7. Ne5 {[%clk 0:02:43]}  dxe5 {[%clk 0:02:28]} 8. Bxa8 {[%clk 0:02:41]}  c6 {[%clk 0:02:28]} 9. dxe5 {[%clk 0:02:40]}  Nd5 {[%clk 0:02:29]} 10. a4 {[%clk 0:02:34]}  b4 {[%clk 0:02:29]} 11. Qd4 {[%clk 0:02:08]}  Nb6 {[%clk 0:02:28]} 12. Qxb4 {[%clk 0:02:04]}  Qc7 {[%clk 0:02:28]} 13. Nd2 {[%clk 0:01:54]}  Nxa8 {[%clk 0:02:23]} 14. O-O-O {[%clk 0:01:52]}  Bxe5 {[%clk 0:02:21]} 15. Nc4 {[%clk 0:01:36]}  Bxb2+ {[%clk 0:02:20]} 16. Kxb2 {[%clk 0:01:37]}  Nb6 {[%clk 0:02:19]} 17. Ne3 {[%clk 0:01:16]}  c5 {[%clk 0:02:16]} 18. Qc3 {[%clk 0:01:14]}  Bb7 {[%clk 0:02:15]} 19. f3 {[%clk 0:01:11]}  e6 {[%clk 0:02:05]} 20. Ng4 {[%clk 0:01:10]}  f6 {[%clk 0:01:19]} 21. Nxf6+ {[%clk 0:01:09]}  Kf7 {[%clk 0:00:56]} 22. Nxh7 {[%clk 0:01:05]}  Nd5 {[%clk 0:00:56]} 23. Rxd5 {[%clk 0:01:03]}  exd5 {[%clk 0:00:45]} 24. Qf6+ {[%clk 0:01:03]}  Kg8 {[%clk 0:00:45]} 25. Nxf8 {[%clk 0:01:03]}  Qf7 {[%clk 0:00:44]} 26. Qxg6+ {[%clk 0:00:56]}  Kxf8 {[%clk 0:00:41]} 27. Qd6+ {[%clk 0:00:56]}  Kg7 {[%clk 0:00:38]} 28. Qxb8 {[%clk 0:00:57]}  d4 {[%clk 0:00:38]} 29. Qe5+ {[%clk 0:00:57]}  Qf6 {[%clk 0:00:38]} 30. Qxf6+ {[%clk 0:00:57]}  Kxf6 {[%clk 0:00:38]} 31. c3 {[%clk 0:00:57]}  Ba6 {[%clk 0:00:36]} 32. cxd4 {[%clk 0:00:56]}  cxd4 {[%clk 0:00:37]} 33. Re1 {[%clk 0:00:57]}  Ke5 {[%clk 0:00:37]} 34. Kc2 {[%clk 0:00:57]}  Kd5 {[%clk 0:00:37]} 35. Kd2 {[%clk 0:00:57]}  Kc5 {[%clk 0:00:36]} 36. h4 {[%clk 0:00:57]}  Kb4 {[%clk 0:00:36]} 37. h5 {[%clk 0:00:58]}  Bc8 {[%clk 0:00:36]} 38. g4 {[%clk 0:00:57]}  Be6 {[%clk 0:00:36]} 39. h6 {[%clk 0:00:58]}  Bg8 {[%clk 0:00:37]} 40. e4 {[%clk 0:00:57]}  Kxb3 {[%clk 0:00:36]} 41. e5 {[%clk 0:00:57]}  d3 {[%clk 0:00:32]} 42. e6 {[%clk 0:00:58]}  Bxe6 {[%clk 0:00:32]} 43. Rxe6 {[%clk 0:00:58]}  Kxa4 {[%clk 0:00:31]} 44. h7 {[%clk 0:00:59]}  a5 {[%clk 0:00:32]} 45. h8=Q {[%clk 0:00:59]}  Kb5 {[%clk 0:00:33]} 46. Qe5+ {[%clk 0:00:59]}  Ka4 {[%clk 0:00:33]} 47. Qd4+ {[%clk 0:00:59]}  Kb5 {[%clk 0:00:32]} 48. Rb6# {[%clk 0:00:59]} 1-0


[Site "https://www.chess.com"]